Cogmind - Beta 9.6 @@@ ROGUE MODE // 2020.05.22 @ 14:55:39 Player: Lecithin Result: Destroyed by S-10 Pest with Light Assault Rifle Performance ------------- Evolutions (0) 0 Regions Visited (1) 200 Robots Destroyed (1) 5 Value Destroyed (34) 34 Prototype IDs (0) 0 Alien Tech Used (0) 0 Bonus (0) 0 TOTAL SCORE: 239 Bonus ------- None Cogmind --------- Core Integrity 0/250 Matter 300/300 Energy 100/100 System Corruption 0% Temperature Cool (0) Movement Core (150) Ox2 Location -10/Materials Parts ------- > --- POWER (1) -------- (None) > --- PROPULSION (2) --- (None) > --- UTILITY (2) ------ Medium Storage Unit > --- WEAPON (2) ------- (None) > --- INVENTORY (8) ---- Large Storage Unit Peak State ------------ > --- POWER ------------ Ion Engine > --- PROPULSION ------- Wheel Wheel > --- UTILITY ---------- Heat Sink Small Storage Unit > --- WEAPON ----------- Light Assault Rifle Light Assault Rifle > --- INVENTORY -------- Light Ion Engine Small Laser [Rating: 7] Favorites ----------- Power Ion Engine Engine Ion Engine Propulsion Wheel Leg Aluminum Leg Wheel Wheel Utility Heat Sink Device Heat Sink Storage Medium Storage Unit Weapon Light Assault Rifle Energy Gun Small Laser Ballistic Gun Light Assault Rifle Build | -11 -10 ------- Run | Scr Mat Slots Evolved . | . . Power . | . . Propulsion . | . . Utility . | . . Weapon . | . . Parts Attached 15 | 11 4 Power 2 | 2 . Engine 2 | 2 . Core . | . . Reactor . | . . Propulsion 6 | 6 . Treads . | . . Leg 2 | 2 . Wheel 4 | 4 . Hover . | . . Flight . | . . Utility 4 | 1 3 Device 1 | 1 . Storage 3 | . 3 Processor . | . . Hackware . | . . Protection . | . . Artifact . | . . Weapon 3 | 2 1 Energy Gun 1 | . 1 Energy Cannon . | . . Ballistic Gun 2 | 2 . Ballistic Cannon . | . . Launcher . | . . Special Weapon . | . . Impact Weapon . | . . Slashing Weapon . | . . Piercing Weapon . | . . Special Melee Weapon . | . . Unidentified Prototypes . | . . Parts Lost 7 | . 7 Power 1 | . 1 Propulsion 2 | . 2 Utility 1 | . 1 Weapon 3 | . 3 Highest Loss Streak 7 | . 7 Average Slot Usage (%) 74 | . 74 Engine 11 | . 11 Wheel 21 | . 21 Device 8 | . 8 Storage 12 | . 12 Energy Gun 1 | . 1 Ballistic Gun 18 | . 18 Naked Turns . | . . Heaviest Build 24 | 8 24 Greatest Support 20 | 20 20 Greatest Overweight (x) 2 | . 2 Average Overweight (x) . | . . Largest Inventory Capacity 10 | 4 10 Average Capacity 4 | 4 7 Most Carried 4 | 4 3 Average Carried 2 | 2 1 Final Capacity 8 | 4 8 Final Carried 2 | 2 1 Class Distribution -------------------- 100% | Mutant Dominant Class ---------------- Mutant | -10/Materials Resources | -11 -10 ----------- Run | Scr Mat Matter Collected 324 | 324 . Remotely . | . . Salvage Created 41 | 41 . Parts 3 | 3 . Haulers Intercepted . | . . Recyclers Shooed . | . . Parts Field Recycled . | . . Retrieved Matter . | . . Parts Self-Destructed . | . . Prevented . | . . Kills | -11 -10 ------- Run | Scr Mat Combat Hostiles Destroyed 1 | 1 . Guns 1 | 1 . Classes Destroyed 1 | 1 . Grunt 1 | 1 . Best Kill Streak 1 | 1 . Combat Bots Only 1 | 1 . Max Kills in Single Turn 1 | 1 . Gunslinging . | . . Exploded . | . . Melee . | . . Uniques/NPCs Destroyed . | . . Combat | -11 -10 -------- Run | Scr Mat Damage Taken 674 | 81 593 Core 251 | . 251 Absorbed by Shields . | . . Core Remaining (%) 100 | 100 . Volleys Fired 19 | 8 11 Largest 2 | 2 2 Hottest 40 | 40 40 Shots Fired 31 | 16 15 Gun 31 | 16 15 Cannon . | . . Launcher . | . . Special . | . . Kinetic 29 | 16 13 Thermal 2 | . 2 Explosive . | . . Electromagnetic . | . . Robot Hit Streak 6 | 6 1 Robot Miss Streak 5 | 1 5 Penetration Max . | . . Secondary Targets . | . . Shots Hit Robots 17 | 14 3 Core Hits 5 | 3 2 Critical Hits . | . . Critical Kills . | . . Critical Parts Destroyed . | . . Melee Attacks . | . . Impact . | . . Slashing . | . . Piercing . | . . Sneak Attacks . | . . Combat Hostiles . | . . Follow-up Attacks . | . . Damage Inflicted 145 | 113 32 Guns 127 | 109 18 Cannons . | . . Explosions . | . . Melee . | . . Ramming 18 | 4 14 Kinetic 115 | 109 6 Thermal 12 | . 12 Explosive . | . . Electromagnetic . | . . Impact . | . . Slashing . | . . Piercing . | . . Highest Corruption . | . . Average Corruption . | . . Corruption Purged . | . . Overload Shots . | . . Overflow Damage . | . . Projectiles . | . . Explosions . | . . Melee . | . . Knockbacks . | . . Impact . | . . Kinetic . | . . Secondary . | . . Self-Inflicted Damage 8 | 2 6 Shots . | . . Rammed 9 | 1 8 Targets Rammed 9 | 1 8 Kicked . | . . Crushed . | . . Highest Temperature 6 | 6 . Average Temperature 6 | 6 . Received Heat Transfer 42 | 42 . Siege Activations . | . . Robots Corrupted . | . . Combat Hostiles . | . . Parts Fried . | . . Impact Corruptions . | . . Robots Melted . | . . Combat Hostiles . | . . Parts Melted . | . . Heat Transferred 25 | . 25 Parts Sabotaged . | . . Parts Stolen . | . . Parts Stripped . | . . Power Chain Reactions . | . . Missiles Intercepted . | . . Alert | -11 -10 ------- Run | Scr Mat Peak Influence 20 | 20 13 Average Influence 13 | 14 7 Maximum Alert Level . | . . Low Security (%) 100 | 100 100 Level 1 . | . . Level 2 . | . . Level 3 . | . . Level 4 . | . . Level 5 . | . . High Security . | . . Max Security . | . . Squads Dispatched 1 | . 1 Investigation . | . . Extermination . | . . Reinforcement 1 | . 1 Assault . | . . Garrison . | . . Intercept . | . . Construction Impeded . | . . Haulers Reinforced . | . . Stealth | -11 -10 --------- Run | Scr Mat Distress Signals . | . . Communications Jammed . | . . Distress Signals . | . . Times Spotted 8 | 1 7 Peak Tracking Total 7 | 1 7 Tactical Retreats . | . . Traps | -11 -10 ------- Run | Scr Mat Traps Triggered . | . . Indirectly . | . . Trap Hack Attempts . | . . Triggered . | . . Disarmed . | . . Reprogrammed . | . . Reused . | . . Traps Extracted . | . . Installed . | . . Triggered . | . . Machines | -11 -10 ---------- Run | Scr Mat Machines Disabled . | . . Max in Single Turn . | . . Machines Sabotaged . | . . Garrisons Compromised . | . . Overloaded Fab Kills . | . . Fab Network Shutdowns . | . . Hacking | -11 -10 --------- Run | Scr Mat Machines Accessed 1 | . 1 Terminals . | . . Fabricators . | . . Repair Stations . | . . Recycling Units 1 | . 1 Scanalyzers . | . . Garrison Access . | . . Total Hacks 3 | . 3 Successful 2 | . 2 Failed 1 | . 1 Catastrophic . | . . Database Lockouts . | . . Manual . | . . Terminals . | . . Fabricators . | . . Repair Stations . | . . Recycling Units 3 | . 3 Scanalyzers . | . . Garrison Access . | . . Terminal Hacks . | . . Fabricator Hacks . | . . Repair Station Hacks . | . . Recycling Unit Hacks 2 | . 2 Recycle Component 1 | . 1 Retrieve Matter 1 | . 1 Scanalyzer . | . . Garrison Access Hacks . | . . Unauthorized Hacks . | . . Terminals . | . . Fabricators . | . . Repair Stations . | . . Recycling Units . | . . Scanalyzers . | . . Garrison Access . | . . Data Cores Recovered . | . . Used . | . . Hacking Detections 1 | . 1 Full Trace Events 1 | . 1 Feedback Events . | . . Feedback Blocked . | . . Robot Schematics Acquired . | . . Robots Built . | . . Matter . | . . Time . | . . Total Robot Build Rating . | . . Part Schematics Acquired . | . . Parts Built . | . . Matter . | . . Time . | . . Total Part Build Rating . | . . Parts Repaired . | . . Time . | . . Parts Recycled 1 | . 1 Recycled Matter . | . . Retrieved Matter . | . . Retrieved Components . | . . Parts Scanalyzed . | . . Part Schematics Acquired . | . . Parts Damaged . | . . Bothacking | -11 -10 ------------ Run | Scr Mat Used RIF Installer . | . . Robots Hacked . | . . Non-combat . | . . Combat . | . . Robot Hacks Applied . | . . Relay Couplers Released . | . . Robots Rewired . | . . Allies Hacked . | . . Hacks Repelled . | . . Allies | -11 -10 -------- Run | Scr Mat Total Allies . | . . Largest Group . | . . Highest-Rated Group . | . . Highest-Rated Ally . | . . Total Orders . | . . Ally Attacks . | . . Total Damage . | . . Kills . | . . Allies Corrupted . | . . Allies Melted . | . . Intel | -11 -10 ------- Run | Scr Mat Robot Analysis Total . | . . Derelict Logs Recovered . | . . Drone Launches . | . . Drone Recoveries . | . . Exploration | -11 -10 ------------- Run | Scr Mat Turns Passed 453 | 357 96 Spaces Moved 352 | 291 61 Core 35 | 30 5 Treads . | . . Legs 2 | 2 . Wheels 315 | 259 56 Hover . | . . Flight . | . . Fastest Speed 50 | 50 80 Average Speed 79 | 77 87 Slowest Speed 150 | 120 150 Overloaded Moves . | . . Propulsion Burnouts . | . . Robots Hopped . | . . Cave-ins Triggered . | . . Exploration Rate (%) 11 | 12 11 Regions Visited 1 Branch Regions . Pre-discovered Areas . | . . Known Exits Taken . | . . Unknown Exits Taken 1 | 1 . Scrap Searched . | . . Spaces Dug . | . . Terrain Destroyed . | . . Melee . | . . Projectile . | . . AOE . | . . Actions | -11 -10 --------- Run | Scr Mat Total 495 | 407 88 Wait 87 | 87 . Move 351 | 290 61 Hop . | . . Pick Up 11 | 8 3 Fast Attach 2 | 2 . Attach 6 | 4 2 Detach . | . . Swap 7 | 5 2 Drop 3 | 2 1 Fire 19 | 8 11 Melee . | . . Ram 9 | 1 8 Kick . | . . Crush . | . . Escape Stasis . | . . Rewire . | . . Trap . | . . Miscellaneous . | . . Route ------- -11/Scrapyard -10/Materials History --------- Turn | Location | Event 2 | -11/Scrapyard | Met Revision 17 64 | -11/Scrapyard | Discovered new exit (range 8) 358 | -11/Scrapyard | Entered Materials 359 | -10/Materials | Build established: Mutant 436 | -10/Materials | Core integrity fell below 50% 451 | -10/Materials | Core integrity fell below 20% 454 | -10/Materials | Destroyed by S-10 Pest with Light Assault Rifle Last Messages --------------- Heat Sink destroyed. K-01 Serf collects debris. Lgt. Assault Rifle destroyed. K-01 Serf collects debris. Lgt. Assault Rifle destroyed. K-01 Serf collects debris. Wheel destroyed. K-01 Serf collects debris. O-16 Technician: "IFF HANDSHAKE FAILED. SECURING TERMINAL." Sml. Laser destroyed. Slammed into S-10 Pest. K-01 Serf collects debris. Slammed into S-10 Pest. Ion Engine destroyed. ALERT: Hostiles spotted, dispatching reinforcements to Terminal M001. [Achievement: Uninvited Guest] K-01 Serf cleans the Hadron Collector. Wheel destroyed. Slammed into S-10 Pest. [Achievement: First Step to Greatness] Map ----- +----------------------------------------------------+ | ???????????????????????????????????? | | ???????????????????????????????????? | | ???????????????????????????????????? | | ???????????????????????????????????? | | ???????????????????????????????????? | | ???????????????????????????????????? | | ???????????????????????????????????? | | ???????????????????????????????????? | | ???????????????????????????????????? | | ???????????????????????????????????? | | ???????????????????????????????????? | | ??????????????????????#####????????? | | ??????????????????????# #????????? | | ??????????????????????# ####?????? | | ??????????????????????# !##????? | | ??????????????????????# !#????? | | ??????????????????????# !#????? | | ??????????????????????# #????? | | ??????????????????????# ! #????? | | ??????????????????????### !!##????? | | ????????????????????????# ####?????? | | ????????????????????????# #????????? | | ????????????????????????# #????????? | | ????????????????????????# #????????? | | ????????????????????????#s#????????? | | ????????????????????????#@#????????? | | ????????????????????????#s#????????? | | ????????????????????????#s#????????? | | ??????????????????????###s#######??? | | ??????????????????????# s #??? | | ????????????????####### """ #??? | | ????????######+## # """ #??? | | ????????# # """ #??? | | ??# + + "" #??? | | ??# ## """ # Y" #??? | | ????????# |] """ # "" #??? | | ????????# |! """ ## #??? | | ?????? |! """ ##########+#??? | | ???? #??????????#??? | | ???? ! #?????????????? | | ?????####+######## #?????????????? | | ????????????????? ?????????????? | | ????????????????# %?????????????? | | ???????????????? *?????????????? | | ???????????????## ????????????? | | ????????????????# #????????????? | | ????????????????#######????????????? | | ???????????????????????????????????? | | ???????????????????????????????????? | | ???????????????????????????????????? | +----------------------------------------------------+ Best States ------------- Heat Dissipation 35 Energy Generation 10 Energy Capacity 250 Matter Stores 300 Matter Capacity 300 Sight Range 16 Terrain Scan Density 10 Evasion (%) 50 Item Schematics ----------------- None Robot Schematics ------------------ None Fabricated ------------ Nothing Alien Tech Used ----------------- None Achievements -------------- First Step to Greatness Storm Trooper Uninvited Guest Challenges ------------ None Game ------ Seed PortableNodeRedirector Manual? 0 Play Time 00:21:50 Cumulative 0.7 hours Start 2020.05.22 @ 14:29:25 End 2020.05.22 @ 14:55:39 Sessions 1 Manual Loads 0 Difficulty Rogue Special Mode None Game No. 2 Rogue 2 Adventurer 0 Explorer 0 Win Type - Total 0 Types 0/0/0/0/0/0/0 Lore% 0 Gallery% 1 Achievement% 1 Wizard Run 0 Options --------- ASCII 0 Keyboard 1 Movement Numpad Keybinds 0 Fullscreen 1 Font 36/Smallcaps Map View 76x50 Tactical HUD 0 Map Filters NONE Filters NONE Steam 1 RUN: 61cd428b-dbad-4f74-b13e-19af246e924c